bitfinex/quotes_ETHUSD_20260228
["timestamp","ask_amount","ask_price","bid_price","bid_amount"]
[1772295486263,0.49501376,1898.1,1897.8,0.001]
[1772295487736,1.31717597,1898.0,1897.8,0.001]
[1772295488074,1.31717597,1898.0,1897.6,0.001]
[1772295489057,1.81218973,1898.0,1897.6,0.001]
[1772295489261,0.49501376,1897.9,1897.6,0.001]
[1772295490067,1.31731478,1897.8,1897.2,0.47056951]
[1772295490285,1.31731478,1897.8,1897.2,1.78829721]
[1772295490778,1.31731478,1897.8,1897.3,0.47056951]
[1772295494371,0.49501376,1897.9,1897.8,1.26934522]
[1772295494545,1.81225913,1897.9,1897.7,0.001]
[1772295495073,1.81225913,1897.9,1897.5,0.001]
[1772295495747,1.31721647,1898.0,1897.5,0.47156951]
[1772295499673,0.47427075,1897.9,1897.5,0.001]
[1772295501093,0.47427075,1897.9,1897.2,0.48949948]
[1772295502172,1.31731478,1897.8,1897.2,0.48949948]
[1772295502368,1.79158553,1897.8,1897.2,0.48949948]
[1772295503061,1.79158553,1897.8,1897.3,0.48949948]
[1772295503486,1.31728655,1897.9,1897.5,0.48949948]
[1772295506074,5.26831265,1898.2,1897.7,0.48949948]
[1772295506283,1.19712364,1898.1,1897.5,0.48949948]
[1772295506469,1.31717597,1898.0,1897.5,0.48949948]
[1772295506862,1.31717597,1898.0,1897.6,0.48949948]
[1772295508503,5.26870389,1898.1,1897.6,0.48949948]
[1772295509502,5.26870389,1898.1,1897.6,0.49049948]
[1772295510008,0.002,1897.9,1897.6,0.49049948]
[1772295510200,0.002,1897.9,1897.6,0.001]
[1772295510580,1.31924537,1897.9,1897.6,0.001]
[1772295511110,0.47427075,1897.7,1897.2,0.48949948]
[1772295511999,1.31924537,1897.9,1897.5,0.48949948]
[1772295512200,0.47427075,1897.8,1897.3,0.48949948]
[1772295513394,1.3173842,1897.7,1897.3,0.48949948]
[1772295516486,0.002,1897.9,1897.5,0.48949948]
[1772295516792,1.31924944,1897.9,1897.6,0.48949948]
[1772295517390,0.002,1897.9,1897.6,0.48949948]
[1772295517606,1.31925058,1897.9,1897.6,0.48949948]
[1772295519317,0.002,1897.9,1897.4,2.52990312]
[1772295519501,0.47427075,1897.7,1897.2,1.80720849]
[1772295519702,0.47627075,1897.9,1897.3,0.48949948]
[1772295519910,0.47627075,1897.9,1897.4,0.48949948]
[1772295521096,0.47627075,1897.9,1897.3,0.72285289]
[1772295521615,0.47627075,1897.9,1897.3,1.21235237]
[1772295521616,1.31731478,1897.8,1897.3,1.21235237]
[1772295521820,1.79158553,1897.8,1897.3,0.48949948]
[1772295522187,1.31731478,1897.8,1897.3,0.48949948]
[1772295522388,0.47427075,1897.7,1897.3,0.48949948]
[1772295522994,1.31731478,1897.8,1897.3,0.48949948]
[1772295523320,1.31731478,1897.8,1897.3,0.49049948]
[1772295523510,1.31931478,1897.8,1897.4,0.48949948]
[1772295524919,0.002,1897.8,1897.4,0.48949948]
[1772295525221,0.002,1897.9,1897.5,0.48672009]
[1772295525595,0.002,1897.9,1897.7,0.48672009]
[1772295525894,0.002,1898.4,1897.9,0.48672009]
[1772295526898,0.002,1898.4,1898.1,0.45389633]
[1772295527227,0.002,1898.4,1898.3,0.45389633]
[1772295527644,0.002,1898.7,1898.5,0.45389633]
[1772295528906,0.002,1899.0,1898.7,0.45389633]
[1772295529733,0.002,1899.0,1898.8,1.77051735]
[1772295530098,1.31832715,1899.3,1898.8,1.77051735]
[1772295530099,0.002,1899.3,1898.9,0.45389633]
[1772295531121,0.002,1899.3,1898.8,1.31662102]
[1772295531351,0.002,1899.3,1898.8,1.77051735]
[1772295531719,0.002,1899.3,1898.9,0.45389633]
[1772295532648,0.002,1899.5,1899.1,0.45389633]
[1772295534267,0.46107316,1899.4,1898.3,1.77081459]
[1772295534425,0.46107316,1899.3,1898.4,0.45389633]
[1772295534740,0.46107316,1899.3,1898.2,1.77090107]
[1772295534934,0.46107316,1899.3,1898.0,5.268555]
[1772295535131,0.46107316,1899.3,1898.0,5.72245133]
[1772295535844,0.46107316,1899.3,1898.1,0.45389633]
[1772295536458,3.61437188,1899.0,1897.8,1.31724537]
[1772295536617,0.46107316,1898.9,1897.8,1.31724537]
[1772295537735,0.46107316,1898.9,1898.0,0.001]
[1772295538538,0.46107316,1898.7,1898.0,0.001]
[1772295540751,0.46107316,1898.5,1898.0,0.001]
[1772295540971,0.46107316,1898.8,1898.1,0.45389633]
[1772295541147,0.46107316,1898.8,1898.0,0.001]
[1772295542975,0.46107316,1898.6,1898.0,0.001]
[1772295543770,0.46107316,1898.5,1898.0,0.001]
[1772295544275,0.46107316,1898.5,1897.9,0.001]
[1772295545047,0.46107316,1898.3,1897.9,0.001]
[1772295545985,1.31689844,1898.4,1897.9,0.001]
[1772295547658,0.46107316,1898.3,1897.9,0.001]
[1772295548070,1.31679017,1898.6,1897.9,0.45489633]
[1772295548393,1.77766409,1898.9,1898.3,0.45389633]
[1772295548769,1.31653074,1899.0,1898.3,0.45389633]
[1772295549171,0.46107316,1898.9,1898.3,0.45389633]
[1772295549698,1.31662102,1898.8,1898.3,1.77083418]
[1772295550871,0.002,1898.8,1898.3,1.77083418]
[1772295551986,0.002,1898.8,1898.3,0.45389633]
[1772295552573,0.002,1898.8,1898.3,1.77085278]
[1772295553125,0.46307316,1898.8,1898.1,4.44646321]
[1772295554317,1.31669036,1898.7,1898.1,4.44646321]
[1772295557527,1.81455555,1898.7,1898.1,1.77200228]
[1772295559523,1.31862102,1898.8,1898.2,0.45580214]
[1772295561732,1.31862102,1898.8,1898.3,1.31696781]
[1772295563607,1.31862102,1898.8,1898.3,0.45580214]
[1772295564302,0.002,1898.7,1898.3,0.45580214]
[1772295565735,0.002,1898.7,1898.4,1.77270058]
[1772295566225,0.002,1898.7,1898.5,0.45580214]
[1772295566438,0.002,1898.9,1898.5,0.45580214]
[1772295567646,0.49786519,1898.8,1898.3,0.45580214]
[1772295567806,0.49786519,1898.8,1898.4,1.31689844]
[1772295568831,1.81450085,1898.8,1898.3,1.77274876]
[1772295569135,0.49786519,1898.7,1898.2,1.31701068]
[1772295569330,0.49786519,1898.7,1898.2,1.77281282]
[1772295569534,0.49786519,1898.8,1898.3,0.45580214]
[1772295569937,1.81449147,1898.8,1898.4,1.31689844]
[1772295570317,1.81449147,1898.8,1898.3,1.77271698]
[1772295571642,1.31858226,1898.9,1898.4,0.45580214]
[1772295572626,0.49986519,1898.9,1898.4,1.77267785]
[1772295575352,0.49786519,1898.7,1898.3,1.3169265]
[1772295575528,0.49786519,1898.7,1898.3,1.77272864]
[1772295576932,1.31662102,1898.8,1898.3,1.77272864]
[1772295577131,1.81448621,1898.8,1898.3,1.77272864]
[1772295577449,1.81448621,1898.8,1898.4,0.45680214]
[1772295577850,1.81648621,1898.8,1898.4,0.45680214]
[1772295579951,0.49786519,1898.7,1898.4,0.001]
[1772295581525,1.81460097,1898.7,1898.4,0.001]
[1772295583656,0.49786519,1898.6,1898.4,0.001]
[1772295586457,1.31682907,1898.5,1898.4,0.001]
[1772295586750,1.79365155,1898.5,1898.4,0.001]
[1772295588869,0.47682248,1898.4,1898.1,0.001]
[1772295590048,0.47682248,1898.4,1898.2,0.001]
[1772295592162,1.79379029,1898.3,1898.0,0.001]
[1772295592860,0.47682248,1898.2,1898.0,0.001]
[1772295593158,1.31696781,1898.3,1898.0,0.001]
[1772295593159,1.79379029,1898.3,1898.0,0.001]
[1772295595642,0.47682248,1898.2,1898.0,0.001]
[1772295596228,1.31710658,1898.1,1897.9,0.001]
[1772295596434,1.79392906,1898.1,1897.9,0.001]
[1772295597269,0.47682248,1898.0,1897.7,2.09974265]
[1772295597482,0.47682248,1898.0,1897.5,0.4852767]
[1772295597483,0.47682248,1897.8,1897.3,0.4852767]
[1772295598036,0.47682248,1897.6,1897.1,0.4852767]
[1772295598336,1.79434553,1897.5,1897.1,0.4852767]
[1772295598541,1.79434553,1897.5,1897.0,1.917]
[1772295599165,1.79434553,1897.5,1896.9,1.80320859]
[1772295599467,0.47682248,1897.4,1896.9,0.4852767]
[1772295600435,1.31766194,1897.3,1896.9,0.4852767]
[1772295601656,1.31764282,1897.4,1897.0,0.4852767]
[1772295601970,0.47682248,1897.3,1896.4,0.4852767]
[1772295602336,0.47682248,1897.0,1896.2,0.4852767]
[1772295602537,0.47682248,1897.0,1895.8,0.4852767]
[1772295602740,0.47682248,1897.0,1895.8,1.80392468]
[1772295602938,0.47682248,1896.8,1895.8,1.80392468]
[1772295603413,0.47682248,1896.8,1895.9,0.4852767]
[1772295604867,1.79490124,1896.7,1896.1,0.4852767]
[1772295605380,0.47682248,1897.0,1896.2,0.4852767]
[1772295607374,0.47682248,1896.8,1896.0,1.803796]
[1772295607545,0.47682248,1897.0,1896.1,0.4852767]
[1772295607745,0.47682248,1897.0,1896.2,0.4852767]
[1772295607950,10.33185564,1897.6,1896.3,0.4852767]
[1772295607951,0.47682248,1897.6,1896.3,0.4852767]
[1772295608139,0.47682248,1897.6,1896.6,0.4852767]
[1772295609169,1.31752305,1897.5,1896.8,0.4852767]
[1772295611088,0.47682248,1897.6,1896.8,0.4852767]
[1772295611290,1.79419056,1897.8,1897.0,0.4852767]
[1772295612971,0.47682248,1897.7,1896.8,1.80327736]
[1772295614194,0.47682248,1897.5,1896.8,1.80327736]
[1772295615394,0.47682248,1897.4,1896.6,0.4852767]
[1772295615692,0.47682248,1897.5,1896.6,0.4852767]
[1772295616194,1.31759249,1897.4,1896.9,0.46950739]
[1772295618903,1.77953787,1897.4,1896.9,0.46950739]
[1772295620078,0.46194538,1897.3,1896.9,1.78742875]
[1772295620280,0.46194538,1897.3,1896.9,0.46950739]
[1772295620821,0.46194538,1897.5,1896.9,1.78743306]
[1772295621104,0.002,1897.6,1897.0,0.46850739]
[1772295621487,0.002,1897.7,1897.2,0.46850739]
[1772295622801,0.002,1897.7,1897.4,0.46850739]
[1772295623702,0.002,1897.7,1897.2,1.78621629]
[1772295624001,0.46394538,1897.7,1897.2,0.46850739]
[1772295624179,0.46394538,1897.7,1897.0,1.78633034]
[1772295624699,0.46394538,1897.7,1897.0,1.78637057]
[1772295624907,0.46194538,1897.5,1897.0,1.78637057]
[1772295627298,0.002,1897.7,1897.1,0.46850739]
[1772295627892,0.002,1897.7,1897.3,0.46850739]
[1772295628402,1.78134077,1897.7,1897.1,0.46850739]
[1772295630376,1.78134077,1897.7,1897.1,1.78626502]
[1772295630601,1.78133625,1897.7,1897.2,0.46850739]
[1772295631579,0.002,1897.6,1897.2,0.46850739]
[1772295631978,0.002,1897.9,1897.5,0.46850739]
[1772295633615,0.002,1897.9,1897.6,1.78596101]
[1772295633903,0.002,1897.9,1897.7,0.46850739]
[1772295635487,0.002,1897.9,1897.7,1.78583491]
[1772295637283,0.002,1897.9,1897.7,0.46850739]
[1772295637791,0.002,1897.9,1897.7,1.78589096]
[1772295637985,0.002,1897.9,1897.7,1.31738357]
[1772295638191,1.78085636,1898.4,1897.8,0.46850739]
[1772295638607,1.78084667,1898.4,1897.8,0.46850739]
[1772295639814,0.002,1898.4,1898.0,0.46850739]
[1772295641982,0.46394538,1898.4,1898.0,1.31712926]
[1772295642416,0.46394538,1898.4,1897.9,0.46850739]
[1772295642601,0.46394538,1898.4,1897.7,0.46850739]
[1772295642981,0.002,1898.7,1898.0,3.61622439]
[1772295643290,0.46394538,1898.7,1898.1,0.46850739]
[1772295643495,0.002,1898.7,1898.1,0.46850739]
[1772295643711,0.002,1898.8,1898.4,0.46850739]
[1772295643911,0.002,1898.8,1898.6,0.46850739]
[1772295644615,0.46394538,1899.1,1898.7,0.49099716]
[1772295644616,0.002,1899.1,1898.7,0.49099716]
[1772295644917,1.31832181,1899.3,1898.7,0.49099716]
[1772295645317,0.002,1899.3,1898.7,0.49099716]
[1772295645802,0.47580604,1899.2,1898.7,0.49099716]
[1772295645986,0.47580604,1899.1,1898.6,1.31675894]
[1772295646290,0.47580604,1899.1,1898.6,1.8020808]
[1772295646613,1.31634372,1899.2,1898.7,0.48532186]
[1772295647390,0.002,1899.3,1898.7,0.48532186]
[1772295647620,1.31827781,1899.3,1898.7,0.48532186]
[1772295647993,1.31827781,1899.3,1898.8,0.48532186]
[1772295648192,0.002,1899.3,1898.8,0.48532186]
[1772295649595,0.48523535,1899.3,1898.8,0.48532186]
[1772295649792,0.48523535,1899.3,1898.5,1.80215093]
[1772295650291,0.48523535,1899.3,1898.2,8.88432325]
[1772295650292,0.48323535,1898.9,1898.1,0.48532186]
[1772295650503,0.48323535,1899.1,1898.1,0.48532186]
[1772295650818,0.48323535,1899.1,1898.2,0.48532186]
[1772295652798,1.80151629,1899.3,1898.5,3.61622439]
[1772295653015,0.36565687,1899.8,1898.5,3.61622439]
[1772295653203,0.48323535,1901.7,1900.5,0.48532186]
[1772295653400,0.48323535,1901.7,1901.2,7.070356]
[1772295653709,2.16540774,1901.9,1901.3,3.90751629]
[1772295654029,0.48323535,1901.6,1900.7,0.48532186]
[1772295654920,1.31475151,1901.5,1900.8,1.31523569]
[1772295655532,4.39803826,1901.8,1900.8,1.80055755]
[1772295656298,0.48323535,1901.6,1900.7,1.31525428]
[1772295656505,0.48323535,1901.6,1900.6,1.31533343]
[1772295656802,1.31475151,1901.5,1900.6,1.31533343]
[1772295657127,0.48323535,1901.4,1900.6,1.31533343]
[1772295657633,0.48323535,1901.4,1900.6,1.80065529]
[1772295658403,0.002,1901.5,1900.6,1.80065529]
[1772295658806,0.002,1901.5,1900.7,0.48532186]
[1772295659008,0.002,1901.5,1900.8,4.10154625]
[1772295659306,0.002,1901.5,1900.9,0.48532186]
[1772295659725,0.002,1901.5,1901.1,0.48532186]
[1772295660429,0.002,1901.8,1901.1,0.48532186]
[1772295660647,0.002,1901.8,1901.0,3.61622439]
[1772295660817,1.79978535,1901.8,1900.8,0.48532186]
[1772295661133,0.48523535,1901.8,1901.0,0.48532186]
[1772295661433,1.79978377,1901.8,1901.0,0.48532186]
[1772295662153,1.31654842,1901.8,1901.0,0.48532186]
[1772295662456,0.002,1901.8,1901.0,0.48532186]
[1772295663637,0.48523535,1901.8,1901.1,1.31502814]
[1772295663839,0.48323535,1901.7,1900.6,0.48532186]
[1772295664039,0.48323535,1901.4,1900.4,1.31551252]
[1772295664642,0.48323535,1901.4,1900.3,1.8008547]
[1772295665557,1.79812516,1901.3,1900.3,1.8008547]
[1772295666755,0.48323535,1901.2,1900.3,1.8008547]
[1772295667057,1.31488981,1901.3,1900.4,0.48532186]
[1772295668140,5.74279459,1901.4,1900.5,1.3154433]
[1772295668455,8.87519349,1901.7,1900.6,0.48532186]
[1772295668456,1.79784859,1901.7,1900.6,0.48532186]
[1772295668628,1.79784859,1901.7,1900.5,1.3154433]
[1772295668629,0.48323535,1901.6,1900.5,1.80076516]
[1772295669154,0.48323535,1901.6,1900.6,0.48532186]
[1772295669558,0.48323535,1901.4,1900.5,1.3154433]
[1772295670039,0.48323535,1901.4,1900.4,1.31545967]
[1772295670247,0.48323535,1901.2,1900.4,0.001]
[1772295670638,3.61622439,1901.1,1900.4,0.001]
[1772295670848,0.48323535,1900.8,1900.0,1.31577821]
[1772295671052,0.48323535,1900.8,1900.3,0.001]
[1772295672367,1.31530488,1900.7,1900.3,0.001]
[1772295680369,0.50026648,1901.1,1900.3,0.001]
[1772295680871,0.50026648,1900.9,1900.3,0.001]
[1772295682180,0.50026648,1900.7,1900.3,0.001]
[1772295683351,0.50026648,1900.7,1900.4,0.001]
[1772295684158,1.81564057,1900.6,1900.1,0.001]
[1772295685166,0.002,1900.8,1900.1,0.48248485]
[1772295685571,1.31724227,1900.8,1900.1,0.48248485]
[1772295685892,0.002,1900.9,1900.2,2.72775976]
[1772295686053,0.002,1900.9,1900.3,0.48148485]
[1772295686054,1.31717137,1900.9,1900.3,0.48148485]
[1772295686255,0.002,1900.9,1900.4,1.79699737]
[1772295686555,0.002,1900.9,1900.5,0.48148485]
[1772295686860,0.002,1900.9,1900.1,0.001]
[1772295686861,0.50226648,1900.9,1900.1,0.001]
[1772295687286,0.50026648,1900.7,1900.1,0.001]
[1772295688794,1.31537409,1900.6,1900.1,0.001]
[1772295691496,1.31535314,1900.7,1900.1,0.48248485]
[1772295691792,5.26269379,1900.9,1900.1,0.48248485]
[1772295692506,0.50026648,1900.8,1900.1,0.001]
[1772295693203,1.81557136,1900.7,1899.9,1.0668538]
[1772295693398,1.81557136,1900.7,1899.9,1.54833865]
[1772295694360,0.50026648,1900.6,1899.9,0.48148485]
[1772295695361,1.3154433,1900.5,1899.9,0.48148485]
[1772295695898,1.3154433,1900.5,1900.2,0.001]
[1772295699599,1.81750217,1900.8,1900.2,0.001]
[1772295700401,1.81750217,1900.8,1900.2,0.48248485]
[1772295700402,1.31723569,1900.8,1900.2,0.48248485]
[1772295701192,0.50026648,1900.7,1900.2,0.001]
[1772295701795,1.31537409,1900.6,1900.2,0.001]
[1772295703807,1.81564057,1900.6,1900.2,0.001]
[1772295704009,0.50026648,1900.5,1900.2,0.001]
[1772295704612,1.31537409,1900.6,1900.2,0.001]
[1772295704781,1.31536352,1900.7,1900.2,0.5451844]
[1772295706201,0.002,1900.8,1900.2,1.86082031]
[1772295707108,0.002,1900.8,1900.2,0.5451844]
[1772295711121,0.54462523,1900.8,1900.2,0.5451844]
[1772295713118,1.31530488,1900.7,1900.2,0.5451844]
[1772295715021,0.54262523,1900.6,1900.2,0.001]
[1772295715322,1.3154433,1900.5,1900.2,0.001]
[1772295722132,1.85806853,1900.5,1900.2,0.001]
[1772295728256,0.54262523,1900.4,1900.0,0.001]
[1772295728411,1.31541051,1900.6,1900.1,0.51725862]
[1772295728739,5.26331838,1900.7,1900.1,0.51725862]
[1772295728740,1.31731475,1900.7,1900.1,0.51725862]
[1772295729130,0.002,1900.7,1900.1,0.51725862]
[1772295730041,0.002,1900.7,1900.2,1.31565098]
[1772295730244,0.002,1900.7,1900.3,0.51725862]
[1772295732522,0.002,1900.6,1900.5,0.51725862]
[1772295732724,0.002,1900.9,1900.5,0.51725862]
[1772295734952,0.002,1900.9,1900.6,0.51725862]
[1772295735432,0.54462523,1900.9,1900.3,0.51725862]
[1772295737450,1.31523569,1900.8,1900.4,0.53636434]
[1772295739346,1.87241612,1900.8,1900.4,0.53636434]
[1772295739520,0.55718043,1900.7,1900.2,0.53636434]
[1772295739728,1.31523569,1900.8,1900.2,0.53636434]
[1772295740246,1.87439558,1900.9,1900.2,4.13867098]
[1772295740451,1.87439558,1900.9,1900.3,0.53636434]
[1772295743053,1.87439558,1900.9,1900.3,1.85188433]
[1772295743254,1.87439558,1900.9,1900.4,0.53636434]
[1772295744446,1.87439558,1900.9,1900.4,0.53736434]
[1772295744758,0.002,1900.8,1900.4,0.53736434]
[1772295745540,0.002,1900.8,1900.4,1.85287638]
[1772295746430,5.26253783,1901.0,1900.5,0.53636434]
[1772295746431,0.002,1901.0,1900.5,0.53636434]
[1772295746636,0.002,1901.0,1900.4,1.31651204]
[1772295746637,0.55718043,1901.5,1900.8,0.53636434]
[1772295747160,1.31468237,1901.6,1901.0,0.53636434]
[1772295747468,1.31664466,1901.7,1901.0,0.53636434]
[1772295747632,0.002,1901.7,1901.0,0.53636434]
[1772295748160,0.002,1902.0,1901.3,3.60230664]
[1772295748326,0.002,1902.0,1901.1,3.60230664]
[1772295748527,0.002,1902.0,1901.5,3.60230664]
[1772295749158,0.002,1902.0,1901.7,1.31461324]
[1772295750060,0.002,1902.0,1901.8,0.53636434]
[1772295750257,0.002,1902.0,1901.4,0.53636434]
[1772295752162,0.002,1902.0,1901.2,0.53636434]
[1772295752163,0.55918043,1902.0,1901.2,0.53636434]
[1772295754132,0.002,1902.0,1901.2,0.53636434]
[1772295754331,0.002,1902.0,1901.4,0.53636434]
[1772295756263,1.31640588,1902.0,1901.5,1.31475151]
[1772295756473,0.55718043,1902.8,1901.7,4.13867098]
[1772295756635,0.55718043,1902.6,1902.0,0.53636434]
[1772295756834,1.31853271,1902.7,1902.0,0.53636434]
[1772295757138,0.55718043,1902.6,1902.0,0.53636434]
[1772295757540,1.31853271,1902.7,1902.0,0.53636434]
[1772295758046,0.55718043,1902.6,1902.0,0.53636434]
[1772295758668,1.31406044,1902.5,1902.0,0.53636434]
[1772295759570,0.002,1902.2,1902.0,0.53636434]
[1772295760979,0.002,1902.2,1902.0,1.85076593]
[1772295761184,0.002,1902.2,1902.0,0.53636434]
[1772295761488,0.002,1902.2,1902.0,1.85075836]
[1772295762460,0.002,1902.2,1902.1,0.53636434]
[1772295763348,0.002,1902.2,1902.1,1.85070112]
[1772295763845,1.31855952,1902.7,1902.2,0.53636434]
[1772295764849,0.00459297,1902.7,1902.4,0.57235943]
[1772295766274,1.894886,1903.3,1902.5,0.54302319]
[1772295766458,0.55515886,1903.2,1902.5,0.54302319]
[1772295767144,1.86876928,1903.2,1902.6,1.31399138]
[1772295767349,1.86876928,1903.2,1902.7,0.54302319]
[1772295767746,1.91057976,1903.4,1902.7,0.54302319]
[1772295767950,0.55515886,1903.2,1902.3,1.85718544]
[1772295768551,0.55515886,1903.2,1902.3,1.31416225]
[1772295768781,0.55515886,1903.2,1902.4,0.54302319]
[1772295769768,1.86880501,1903.1,1902.5,1.85708363]
[1772295769963,1.86880501,1903.1,1902.6,0.54302319]
[1772295771285,1.87080501,1903.1,1902.6,0.54302319]
[1772295771480,0.55515886,1903.0,1902.4,1.85715271]
[1772295771852,1.86894308,1902.9,1902.4,0.54302319]
[1772295773184,1.31378422,1902.9,1902.5,0.54302319]
[1772295773776,5.2551266,1903.0,1902.5,0.54302319]
[1772295774079,5.81028546,1903.0,1902.5,0.54302319]
[1772295774679,0.55515886,1902.9,1902.2,0.54302319]
[1772295775871,5.25501994,1903.0,1902.3,0.54302319]
[1772295776069,1.31571518,1903.1,1902.5,0.54302319]
[1772295776070,0.002,1903.1,1902.5,0.54302319]
[1772295776783,1.87081339,1903.1,1902.5,0.54302319]
[1772295776982,0.002,1903.1,1902.5,0.54302319]
[1772295778458,0.002,1903.1,1902.7,0.54302319]
[1772295780671,0.002,1903.1,1902.8,1.31385326]
[1772295781002,0.55515886,1903.0,1902.0,0.54302319]
[1772295781299,0.55515886,1903.0,1901.9,1.85749818]
[1772295781462,0.55515886,1903.0,1902.0,0.54302319]
[1772295782997,0.55515886,1902.8,1902.0,0.54302319]
[1772295783205,0.55515886,1902.8,1902.1,0.54302319]
[1772295783895,0.55515886,1902.8,1902.1,0.54402319]
[1772295785394,0.55515886,1902.6,1902.1,0.001]
[1772295787601,1.8692193,1902.5,1902.1,0.001]
[1772295787969,0.55515886,1902.4,1902.1,0.001]
[1772295788796,0.55515886,1902.4,1902.0,0.001]
[1772295789982,0.55515886,1902.2,1902.0,0.001]
[1772295791910,0.55515886,1902.0,1901.8,0.001]
[1772295794182,1.31447499,1901.9,1901.5,0.54402319]
[1772295795714,1.86963385,1901.9,1901.5,0.001]
[1772295796279,1.86963385,1901.9,1901.5,0.52454727]
[1772295796480,1.84958042,1902.3,1901.7,0.52354727]
[1772295797098,0.53533528,1902.2,1901.8,0.001]
[1772295798289,1.84963425,1902.2,1901.8,0.001]
[1772295800837,0.53533528,1902.4,1901.9,0.52354727]
[1772295803611,5.25625145,1902.5,1901.9,0.52354727]
[1772295803914,5.79158673,1902.5,1902.0,0.52354727]
[1772295804306,0.53533528,1902.5,1902.0,0.52354727]
[1772295805502,0.53533528,1902.5,1901.8,0.52454727]
[1772295805715,0.53533528,1902.3,1901.8,0.52454727]
[1772295806322,0.53533528,1902.3,1901.8,1.83909054]
[1772295806622,0.53533528,1902.3,1901.8,0.52454727]
[1772295806819,0.53533528,1902.3,1901.8,1.8390885]
[1772295807202,0.53533528,1902.3,1901.8,1.83908231]
[1772295807410,0.53533528,1902.3,1901.8,0.52454727]
[1772295808102,1.31426769,1902.2,1901.8,1.83908862]
[1772295809189,1.31426769,1902.2,1901.8,0.52454727]
[1772295809390,1.31426769,1902.2,1901.8,1.83908789]
[1772295809705,5.79213386,1902.3,1901.8,1.83908789]
[1772295809904,5.79213386,1902.3,1901.9,0.52354727]
[1772295810209,1.84953388,1902.3,1901.9,0.52454727]
[1772295810416,0.002,1902.1,1901.9,0.52454727]
[1772295811206,0.53733528,1902.1,1901.9,0.001]
[1772295811409,0.53733528,1902.1,1901.6,0.001]
[1772295812089,1.84974116,1902.0,1901.6,0.001]
[1772295812416,1.31633678,1902.1,1901.6,0.52454727]
[1772295812823,1.85167206,1902.1,1901.6,0.52454727]
[1772295813514,0.53533528,1902.0,1901.6,0.001]
[1772295814000,0.53533528,1902.0,1901.6,0.52454727]
[1772295814720,1.31447499,1901.9,1901.6,0.52454727]
[1772295814916,1.31447499,1901.9,1901.6,0.001]
[1772295815102,1.84981027,1901.9,1901.6,0.001]
[1772295816720,1.8517197,1902.1,1901.6,1.83922759]
[1772295816907,1.8517197,1902.1,1901.6,0.52454727]
[1772295819024,0.53533528,1902.0,1901.6,0.52454727]
[1772295819425,0.53533528,1902.0,1901.4,0.27636886]
[1772295819642,0.56866291,1901.8,1900.9,5.03592775]
[1772295819791,0.56866291,1901.8,1901.0,0.852]
[1772295820436,15.7603585,1901.9,1901.3,0.26361634]
[1772295820727,15.7603585,1901.9,1901.8,6.35047186]
[1772295820728,5.86871345,1901.9,1901.8,6.35047186]
[1772295820897,5.86871345,1901.9,1901.8,1.31454411]
[1772295821223,0.002,1902.1,1901.8,1.31454411]
[1772295821423,0.002,1902.1,1901.9,0.52354727]
[1772295822502,18.9144302,1902.2,1902.0,0.52354727]
[1772295822910,18.9144302,1902.2,1902.1,1.31433678]
[1772295823101,0.70047108,1902.5,1902.1,1.31433678]
[1772295823300,0.70047108,1902.5,1902.0,2.91647948]
[1772295823301,0.002,1902.4,1902.0,2.91647948]
[1772295824606,0.70047108,1902.5,1902.0,1.60212567]
[1772295824808,1.63409901,1902.2,1901.6,2.60541708]
[1772295825011,1.63409901,1902.2,1901.8,1.0785784]
[1772295825331,1.63609901,1902.2,1901.8,1.0785784]
[1772295826401,1.63409901,1902.2,1901.8,1.0785784]
[1772295827330,1.31621354,1902.3,1901.8,1.0785784]
[1772295827331,1.49187993,1902.1,1901.8,1.0785784]
[1772295827738,1.49187993,1902.1,1901.7,0.001]
[1772295828833,1.49187993,1902.0,1901.7,0.001]
[1772295831031,0.002,1902.0,1901.7,0.001]
[1772295831205,0.002,1902.0,1901.7,1.56482174]
[1772295832130,0.002,1902.0,1901.7,2.87943387]
[1772295832699,0.002,1902.0,1901.7,1.56482174]
[1772295832906,1.49187993,1902.0,1901.7,0.001]
[1772295833125,1.49187993,1902.0,1901.7,1.31561309]
[1772295833327,1.49187993,1902.0,1901.7,0.001]
[1772295837820,1.49187993,1902.3,1901.8,1.56382174]
[1772295838039,1.49187993,1902.2,1901.8,1.56382174]
[1772295838381,1.49187993,1902.2,1901.7,1.845]
[1772295838523,1.48987993,1902.0,1901.7,1.845]
[1772295838723,1.48987993,1902.0,1901.7,1.846]
[1772295839455,1.48987993,1902.0,1901.8,0.001]
[1772295839646,1.49187993,1902.0,1901.8,0.001]
[1772295839955,0.002,1902.0,1901.8,0.001]
[1772295841255,1.49187993,1902.0,1901.8,0.001]
[1772295842151,1.49187993,1902.0,1901.7,0.001]
[1772295844149,0.002,1902.0,1901.7,0.001]
[1772295844352,0.002,1902.0,1901.7,1.56482174]
[1772295846257,0.002,1902.0,1901.8,1.56382174]
[1772295846762,0.002,1902.1,1901.8,1.56382174]
[1772295847255,0.002,1902.2,1902.0,1.56382174]
[1772295847457,0.002,1902.2,1902.1,3.41482174]
[1772295848454,1e-08,1902.3,1902.1,4.72915852]
[1772295848665,0.00200001,1902.3,1902.1,4.72915852]
[1772295849069,0.002,1902.4,1902.1,4.72915852]
[1772295849363,1.49187993,1902.6,1902.1,4.72915852]
[1772295849960,0.002,1902.6,1902.2,1.56382174]
[1772295850462,0.002,1902.6,1902.3,1.3141986]
[1772295850966,1.48987993,1902.5,1902.1,3.16933678]
[1772295851367,1.48987993,1902.5,1902.1,4.24775249]
[1772295851530,1.48987993,1902.5,1902.1,5.81157423]
[1772295852429,1.48987993,1902.5,1902.3,1.07841571]
[1772295852757,1.48987993,1902.5,1902.1,5.81157423]
[1772295853262,1.48987993,1902.5,1902.3,1.07841571]
[1772295853767,1.48987993,1902.5,1902.1,5.81157423]
[1772295854135,1.49187993,1902.6,1902.1,5.81157423]
[1772295854567,0.002,1902.6,1902.4,2.64223745]
[1772295854758,0.002,1902.6,1902.5,1.56382174]
[1772295855072,22.0665019,1903.0,1902.5,1.56382174]
[1772295855368,0.04735053,1903.9,1903.0,1.56382174]
[1772295855537,0.04735053,1903.9,1903.6,1.07841571]
[1772295855738,0.04735053,1903.9,1903.4,1.07841571]
[1772295856142,0.04735053,1903.9,1903.6,1.07841571]
[1772295856336,2.58854648,1904.3,1902.9,5.07773658]
[1772295856337,1.80197908,1904.3,1903.4,2.29464608]
[1772295856546,1.80197908,1904.3,1903.8,1.07841571]
[1772295857274,1.31279243,1904.4,1903.6,1.859]